[Event "44th Chess Olympiad Women 2022"]
[Site "Chennai"]
[Date "2022.07.29"]
[Round "1.38"]
[White "Sharku, Enesa"]
[Black "Asgharzadeh, Mitra"]
[Result "0-1"]
[ECO "B72"]
[WhiteElo "1094"]
[BlackElo "1988"]
[Annotator "TA"]
[PlyCount "112"]
[EventDate "2022.07.29"]
[EventType "team-tourn"]
[EventCountry "IND"]
[SourceTitle "playchess.com"]
[Source "ChessBase"]
[SourceQuality "1"]
[WhiteTeam "Kosovo"]
[BlackTeam "Iran"]
[WhiteTeamCountry "KOS"]
[BlackTeamCountry "IRI"]
[TimeControl "40/5400+30:1800+30"]

{[%evp 16,112,10,11,24,0,-13,-48,0,0,35,31,29,-7,0,-6,-5,-70,-85,-112,-112,-163,-159,-198,-196,-240,-234,-231,-234,-231,-229,-509,-219,-219,-212,-236,-228,-239,-233,-318,-308,-330,-364,-399,-399,-399,-399,-401,-402,-469,-435,-522,-542,-604,-591,-762,-757,-767,-766,-977,-965,-810,-833,-595,-403,-1154,-1136,-1037,-895,-29970,-29972,-29970,-29971,-29971,-29970,-29973,-29973,-29977,-29978,-29978,-29978,-29978,-29979,-29979,-29979,-12697,-5093,-29984,-29985,-29986,-29987,-29987,-29988,-29990,-29991,-29991,-29992,-29992,-29993]} 1. e4 {[%emt 0:00:05]} c5 {[%emt 0:00:09]} 2. Nf3 {[%emt 0:00:37]} d6 {[%emt 0:00:08]} 3. d4 {[%emt 0:00:44]} cxd4 {[%emt 0:00:07]} 4. Nxd4 {[%emt 0:00:37]} Nf6 {[%emt 0:00:11]} 5. Nc3 {[%emt 0:01:10]} g6 {[%emt 0:00:08]} 6. Be3 {[%emt 0:01:13]} Bg7 {[%emt 0:00:11]} 7. Be2 {[%emt 0:01:55]} O-O {[%emt 0:00:15]} 8. Qd2 {[%emt 0:00:43]} Nc6 {[%emt 0:00:16]} 9. Nb3 {[%emt 0:03:11]} Ng4 {[%emt 0:02:03] B72: Sicilian Dragon: 6 Be3, lines with h3+Bc4 and sidelines.} 10. Bxg4 {[%emt 0:02:48]} (10. Bg5 {seems wilder.} Qb6 11. O-O h6 12. Na4) 10... Bxg4 {[%emt 0:00:02][%cal Bc8g4,Bg4d7,Bd7e6,Be6b3][%mdl 32]} 11. O-O {[%emt 0:04:49] [#]} Rc8 $146 {[%emt 0:07:45]} (11... Ne5 $1 $15 {is more appropriate.}) ({Predecessor:} 11... Ne5 12. Bh6 Be6 13. Bxg7 Kxg7 14. Nd5 Rc8 15. Nd4 Bd7 16. b3 e6 17. Ne3 Bc6 18. f4 Nd7 {1-0 (46) Tusu,N (1880)-Perez Garcia,J (1950) Benidorm 2018}) 12. Bh6 $11 {[%emt 0:03:56]} a6 {[%emt 0:03:50]} 13. Bxg7 {[%emt 0:04:17]} Kxg7 {[%emt 0:00:03]} 14. a4 {[%emt 0:00:47]} Ne5 {[%emt 0:05:15][%cal Bc6e5,Be5c4,Bc4b2][%mdl 32]} 15. h3 {[%emt 0:03:42]} Bd7 {[%emt 0:06:27]} 16. f4 {[%emt 0:07:12]} (16. Qd4 $11) 16... Nc4 $15 {[%emt 0:01:10][%csl LRb2,LRd2] Black converts the advantage convincingly.} 17. Qd4+ {[%emt 0:02:31]} e5 {[%emt 0:01:28]} 18. fxe5 {[%emt 0:01:36]} (18. Qf2 $17) 18... dxe5 $19 {[%emt 0:00:13]} 19. Qd3 {[%emt 0:02:34]} Nxb2 {[%emt 0:03:40]} 20. Qf3 {[%emt 0:02:45]} Be6 {[%emt 0:01:33] [#] ...Bxb3 is the strong threat.} 21. Rab1 {[%emt 0:02:31]} Bxb3 {[%emt 0:02:37]} 22. Rxb2 {[%emt 0:06:54]} Qd4+ {[%emt 0:01:05]} 23. Qf2 $2 {[%emt 0:03:42]} (23. Kh1 Rxc3 24. Qf6+ Kg8 25. Rxb3) 23... Qxf2+ {[%emt 0:03:07]} ({Don't blunder} 23... Rxc3 $2 24. Rxb3 Rxb3 25. Qxd4 exd4 26. cxb3 $19) (23... Bc4 $142 24. Qxd4 exd4) 24. Rxf2 {[%emt 0:00:09]} Rxc3 {[%emt 0:00:08]} 25. Rxb3 {[%emt 0:00:08]} Rxb3 {[%emt 0:00:12]} 26. cxb3 {[%emt 0:00:09][%mdl 4096] Endgame KR-KR} Rd8 {[%emt 0:00:13] Inhibits Rd2.} 27. Rc2 {[%emt 0:01:46]} Rd3 {[%emt 0:00:12]} 28. Rc5 {[%emt 0:01:33]} Kf6 {[%emt 0:00:37]} ({Not} 28... Rxb3 $2 29. Rxe5 Rb4 30. a5 $19) 29. b4 {[%emt 0:01:52]} Rd4 {[%emt 0:00:16][%csl LRb4,LRe4]} 30. b5 {[%emt 0:00:19]} Rxa4 {[%emt 0:00:25]} 31. bxa6 {[%emt 0:00:21]} bxa6 {[%emt 0:00:39]} 32. Kf2 {[%emt 0:04:47]} a5 {[%emt 0:05:02]} 33. Kf3 {[%emt 0:02:42]} Ra3+ {[%emt 0:00:13]} 34. Ke2 {[%emt 0:00:54]} a4 {[%emt 0:00:42]} 35. Rc6+ {[%emt 0:01:26]} Kg5 {[%emt 0:01:25]} 36. Rc7 {[%emt 0:01:54]} Ra2+ {[%emt 0:01:11]} 37. Kf3 {[%emt 0:01:06]} Ra1 {[%emt 0:00:16]} 38. Kg3 {[%emt 0:01:52]} Kf6 {[%emt 0:03:32] And now ...a3 would win.} 39. Rc6+ {[%emt 0:01:43]} Kg7 {[%emt 0:00:14] [#] Hoping for ...a3.} 40. Ra6 {[%emt 0:03:39]} (40. Rc5 $142) 40... a3 {[%emt 0:00:42]} 41. Kg4 {[%emt 0:30:38]} a2 {[%emt 0:30:17][%cal Of7f5] Threatens to win with ...f5+!} 42. h4 {[%emt 0:01:39]} h5+ {[%emt 0:00:27]} 43. Kg3 {[%emt 0:01:03]} f5 {[%emt 0:00:15]} 44. Ra7+ {[%emt 0:01:49]} Kf6 {[%emt 0:00:13]} 45. Ra6+ {[%emt 0:01:11]} Ke7 {[%emt 0:00:06]} 46. exf5 {[%emt 0:01:20]} gxf5 {[%emt 0:00:02]} 47. Ra7+ {[%emt 0:00:16]} Kd6 {[%emt 0:00:08]} 48. Ra6+ {[%emt 0:00:23]} Kc5 {[%emt 0:00:23]} 49. Ra5+ {[%emt 0:00:50]} Kb4 {[%emt 0:00:10]} 50. Ra7 {[%emt 0:01:44]} f4+ {[%emt 0:00:15]} (50... Kb5 $142 51. Ra8 e4 52. Rb8+ Kc6) 51. Kf2 {[%emt 0:00:20]} e4 {[%emt 0:00:06][%cal Be5e4,Be4e3][%mdl 32] Black mates.} 52. Rb7+ {[%emt 0:00:44]} Kc5 {[%emt 0:00:07]} 53. Ra7 {[%emt 0:00:49]} e3+ {[%emt 0:00:05]} 54. Kf3 {[%emt 0:00:17]} Rf1+ {[%emt 0:00:11]} 55. Ke2 {[%emt 0:01:13]} a1=Q {[%emt 0:00:12]} 56. Rxa1 {[%emt 0:00:11]} Rxa1 {[%emt 0:00:02] Weighted Error Value: White=0.48/Black=0.16 (very precise)} 0-1

[Event "44th Chess Olympiad Women 2022"]
[Site "Chennai"]
[Date "2022.07.29"]
[Round "1.39"]
[White "Mendoza, Shania Mae"]
[Black "Nacario, Ruth"]
[Result "1-0"]
[ECO "B07"]
[WhiteElo "2153"]
[BlackElo "1552"]
[Annotator "TA"]
[PlyCount "65"]
[EventDate "2022.07.29"]
[EventType "team-tourn"]
[EventCountry "IND"]
[SourceTitle "playchess.com"]
[Source "ChessBase"]
[SourceQuality "1"]
[WhiteTeam "Philippines"]
[BlackTeam "GUM"]
[WhiteTeamCountry "PHI"]
[TimeControl "40/5400+30:1800+30"]

{[%evp 10,64,41,21,94,71,97,64,97,53,100,64,121,117,174,157,216,158,243,190,540,400,372,85,71,76,93,83,72,15,17,45,56,51,135,92,149,149,137,133,131,144,135,134,114,141,29982,29983,29981,1800,1703,86,29997,29998,29998,29999,29999]} 1. e4 {[%emt 0:00:14]} d6 {[%emt 0:00:12]} 2. d4 {[%emt 0:00:20]} Nf6 {[%emt 0:00:35]} 3. Nc3 {[%emt 0:01:02]} g6 {[%emt 0:01:41]} 4. h3 {[%emt 0:00:57]} Bg7 {[%emt 0:01:32]} 5. Be3 {[%emt 0:02:30]} c6 {[%emt 0:03:12]} 6. g4 {[%emt 0:01:33]} h6 {[%emt 0:05:21] B07: Pirc Defence: Miscellaneous Systems.} (6... b5 $11 {keeps the balance.}) 7. Bg2 {[%emt 0:03:44] [#]} Qc7 $146 {[%emt 0:04:13]} ({Predecessor:} 7... Nbd7 8. Nge2 Nb6 9. b3 d5 10. e5 Ng8 11. Ng3 e6 12. h4 Bd7 13. a4 a5 14. Nce2 {1-0 (36) Brandenburg,D (2530)-Dehn,M (2169) Groningen 2014}) 8. Nge2 {[%emt 0:02:48]} Nbd7 {[%emt 0:04:11] White is slightly better.} 9. Qd2 {[%emt 0:02:35]} e5 {[%emt 0:15:01]} (9... b5 $14 {feels stronger.}) 10. f4 {[%emt 0:01:52]} Nb6 {[%emt 0:06:48]} (10... b5 $14) 11. b3 {[%emt 0:03:47]} Bd7 {[%emt 0:06:31]} (11... Nbd7 $16) 12. a4 {[%emt 0:05:46]} a5 {[%emt 0:03:56]} (12... Rd8 $16 13. O-O O-O 14. fxe5 dxe5 15. Bxh6 Nc8) 13. O-O {[%emt 0:00:54]} O-O-O {[%emt 0:03:15]} (13... Nh7 $16 {was called for.} 14. fxe5 dxe5) 14. Rab1 {[%emt 0:11:51]} c5 $2 {[%emt 0:07:41]} (14... Bxg4 15. hxg4 Nxg4) 15. dxc5 {[%emt 0:04:35]} dxc5 {[%emt 0:03:03]} 16. Nd5 $2 {[%emt 0:00:12]} (16. fxe5 $18 Qxe5 17. Bf4) 16... Nbxd5 $16 {[%emt 0:01:40]} 17. exd5 {[%emt 0:00:09]} Ne8 {[%emt 0:03:50][%cal Oe5e4]} 18. fxe5 {[%emt 0:04:48] White is more active.} Bxe5 {[%emt 0:06:53] [#]} 19. Rxf7 {[%emt 0:01:09]} (19. Nf4 $1 $16) 19... Nd6 $1 $11 {[%emt 0:04:24]} 20. Rf2 {[%emt 0:00:28]} h5 {[%emt 0:02:49]} 21. g5 {[%emt 0:04:21]} Rdf8 {[%emt 0:02:04]} (21... Rhe8 $14) 22. Rbf1 {[%emt 0:00:17]} Nf5 {[%emt 0:00:56]} (22... Rxf2 $142 23. Rxf2 Bf5) 23. Bf4 $16 {[%emt 0:00:49][%cal Od5d6] d6! is the strong threat.} Re8 {[%emt 0:03:18]} 24. Bxe5 {[%emt 0:04:31]} Qxe5 {[%emt 0:01:05]} 25. Qxa5 {[%emt 0:02:09]} Ne3 {[%emt 0:03:54] [#]} 26. d6 $1 {[%emt 0:05:19]} Qxd6 {[%emt 0:00:38]} 27. Rf6 $36 {[%emt 0:01:05][%mdl 2048] White has strong initiative. Really sharp!} ({But not} 27. Qa8+ $6 Qb8 28. Qxb8+ (28. Bxb7+ Kc7 $11) 28... Kxb8 $11) 27... Qe5 {[%emt 0:01:30][%mdl 8192]} (27... Qb8 $16) 28. Qa8+ {[%emt 0:00:20]} Kc7 {[%emt 0:00:04]} 29. Qxb7+ {[%emt 0:00:27]} Kd8 {[%emt 0:00:24]} 30. Qb6+ $2 {[%emt 0:03:32]} (30. Qa8+ $18 {and the rest is easy.} Kc7 31. Qb7+ Kd8 32. Qa8+ Kc7 33. Qb7+) 30... Kc8 $4 {[%emt 0:00:58][%mdl 8192]} (30... Qc7 $16) 31. Bb7+ {[%emt 0:00:06] White mates.} Kb8 {[%emt 0:00:15]} 32. Ba6+ {[%emt 0:00:16]} Ka8 {[%emt 0:00:52]} 33. Qb7# {[%emt 0:00:07] Weighted Error Value: White=0.74/Black=0.85} 1-0

[Event "44th Chess Olympiad Women 2022"]
[Site "Chennai"]
[Date "2022.07.29"]
[Round "1.39"]
[White "Ollet, Myra"]
[Black "Fronda, Jan Jodilyn"]
[Result "0-1"]
[ECO "D37"]
[WhiteElo "1480"]
[BlackElo "2181"]
[Annotator "TA"]
[PlyCount "54"]
[EventDate "2022.07.29"]
[EventType "team-tourn"]
[EventCountry "IND"]
[SourceTitle "playchess.com"]
[Source "ChessBase"]
[SourceQuality "1"]
[WhiteTeam "GUM"]
[BlackTeam "Philippines"]
[BlackTeamCountry "PHI"]
[TimeControl "40/5400+30:1800+30"]

{[%evp 14,54,16,0,18,-20,-20,-23,-18,-23,-12,-61,-53,-89,-89,-93,-92,-95,-87,-102,-85,-104,-88,-104,-106,-187,-175,-180,-175,-211,-196,-189,-168,-168,-169,-158,-87,-163,-159,-29994,-29995,-29995,-29996]} 1. d4 {[%emt 0:00:25]} Nf6 {[%emt 0:00:39]} 2. c4 {[%emt 0:00:52]} e6 {[%emt 0:01:19]} 3. Nc3 {[%emt 0:00:48]} d5 {[%emt 0:00:07]} 4. c5 {[%emt 0:00:38]} c6 {[%emt 0:01:32]} 5. Bf4 {[%emt 0:00:18]} Nbd7 {[%emt 0:00:31]} 6. Nf3 {[%emt 0:00:17]} Be7 {[%emt 0:01:11]} 7. h3 {[%emt 0:01:07]} O-O {[%emt 0:01:01]} 8. e3 {[%emt 0:00:16]} Ne4 {[%emt 0:02:39] D37: Queen's Gambit Declined: 5 Bf4.} 9. Bd3 {[%emt 0:02:01]} Nxc3 {[%emt 0:06:40]} 10. bxc3 {[%emt 0:00:36]} b6 {[%emt 0:00:16] Black has an edge.} 11. cxb6 {[%emt 0:00:43]} axb6 {[%emt 0:00:31] [#]} 12. O-O $146 {[%emt 0:00:48]} (12. Qc2 $11 {should be considered.}) ({Predecessor:} 12. a4 Ba6 13. O-O Qc8 14. Qc2 Bxd3 15. Qxd3 Qa6 16. Qc2 Rfc8 17. Qb3 Ra7 18. Rfb1 {0-1 (30) Bauza,L-Pilnik,H Mar del Plata 1946}) 12... Ba6 $15 {[%emt 0:00:22]} 13. Re1 {[%emt 0:01:52]} Bxd3 {[%emt 0:01:50]} 14. Qxd3 {[%emt 0:00:30]} Ra3 {[%emt 0:00:11]} 15. Nd2 {[%emt 0:02:49]} Qa8 {[%emt 0:01:40]} 16. Qc2 {[%emt 0:01:54]} c5 {[%emt 0:00:53]} 17. Nf3 {[%emt 0:04:24]} Rc8 {[%emt 0:01:09]} 18. Ne5 {[%emt 0:31:32]} Nxe5 {[%emt 0:05:43]} 19. dxe5 {[%emt 0:07:52]} (19. Bxe5 $17 {is a better defense.} f6 20. Bf4) 19... Qa5 $19 {[%emt 0:00:21]} 20. Rec1 {[%emt 0:05:12]} Ra8 {[%emt 0:02:19][%cal Ra3a2]} 21. Qb2 {[%emt 0:04:38]} g5 {[%emt 0:13:19]} 22. Bg3 {[%emt 0:02:22]} Rxa2 {[%emt 0:01:13]} 23. Rxa2 {[%emt 0:00:23]} Qxa2 {[%emt 0:00:06]} 24. Qxb6 {[%emt 0:00:15]} h5 {[%emt 0:01:00]} (24... Qd2 $142 25. Rb1 Qxc3) 25. f4 {[%emt 0:06:34]} (25. h4 $17 {might work better.}) 25... Qd2 {[%emt 0:00:34] ( -> ...Ra2)} 26. Re1 $2 {[%emt 0:02:55] [#]} (26. Rf1 $17) 26... Ra2 {[%emt 0:00:12][%csl Ga2][%cal Rd2g2]} 27. Qb8+ {[%emt 0:03:27]} Kg7 {[%emt 0:00:12] Weighted Error Value: White=0.49/Black=0.09 (flawless)} 0-1

[Event "44th Chess Olympiad Women 2022"]
[Site "Chennai"]
[Date "2022.07.29"]
[Round "1.39"]
[White "Estur, Grace Co"]
[Black "San Diego, Marie Antoinette"]
[Result "0-1"]
[ECO "D02"]
[WhiteElo "1472"]
[BlackElo "2101"]
[Annotator "TA"]
[PlyCount "58"]
[EventDate "2022.07.29"]
[EventType "team-tourn"]
[EventCountry "IND"]
[SourceTitle "playchess.com"]
[Source "ChessBase"]
[SourceQuality "1"]
[WhiteTeam "GUM"]
[BlackTeam "Philippines"]
[BlackTeamCountry "PHI"]
[TimeControl "40/5400+30:1800+30"]

{[%evp 9,58,8,29,-10,0,-12,-7,-24,-29,-28,0,0,0,0,0,0,6,-127,-122,-242,-219,-793,-794,-1464,-1441,-1366,-867,-1050,-983,-1016,-908,-1101,-1079,-1157,-909,-1851,-1646,-1997,-1668,-3092,-3131,-29991,-29992,-29992,-29993,-29995,-29996,-29996,-29997,-29997,-29998]} 1. d4 {[%emt 0:00:04]} d5 {[%emt 0:00:08]} 2. g3 {[%emt 0:00:28]} Nf6 {[%emt 0:00:09]} 3. Bg2 {[%emt 0:00:41]} Bf5 {[%emt 0:00:11]} 4. Nf3 {[%emt 0:01:27]} h6 {[%emt 0:00:16]} 5. O-O {[%emt 0:01:39]} e6 {[%emt 0:00:13]} 6. c3 {[%emt 0:07:49] D02: 1 d4 d5 2 Nf3 sidelines, including 2...Nf6 3 g3 and 2...Nf6 3 Bf4.} (6. c4 $5) 6... Nbd7 {[%emt 0:01:04]} 7. Re1 {[%emt 0:06:48]} Be7 {[%emt 0:00:50]} 8. Nbd2 {[%emt 0:04:05][%cal Bb1d2,Bd2f3,Bf3d4][%mdl 32] The position is equal.} O-O {[%emt 0:00:22]} 9. Ne5 {[%emt 0:04:00]} Nxe5 {[%emt 0:14:20]} 10. dxe5 {[%emt 0:16:39] [#]} Ng4 $146 {[%emt 0:03:11]} ({Predecessor:} 10... Nd7 11. f4 c5 12. e4 dxe4 13. Bxe4 Bxe4 14. Nxe4 Qc7 15. Qe2 Rfd8 16. Be3 Nb6 {1-0 (34) Kucherenko,B-Emets,V Odessa 2007}) 11. Nf3 $1 {[%emt 0:03:07]} Bc5 $36 {[%emt 0:08:46][%mdl 2048] Black is more active.} 12. Nd4 {[%emt 0:09:11]} f6 {[%emt 0:09:54]} 13. e4 {[%emt 0:15:30]} (13. e3 $11) 13... dxe4 $17 {[%emt 0:03:00] White is now going downhill.} 14. Bxe4 {[%emt 0:08:03]} (14. exf6 $17 {keeps fighting.} Qxf6 15. Be3) 14... Nxf2 $19 {[%emt 0:12:44]} ({But not} 14... fxe5 $2 15. Qe2) 15. Qh5 {[%emt 0:05:08] [#]} (15. Kxf2 fxe5 16. Kg2 exd4 17. Bxf5 Rxf5 18. Qb3) 15... Nxe4 {[%emt 0:00:57]} 16. Rxe4 {[%emt 0:01:07]} Bxe4 {[%emt 0:00:18]} 17. Be3 {[%emt 0:03:34]} Bxd4 {[%emt 0:00:28]} 18. cxd4 {[%emt 0:00:26]} Qd5 {[%emt 0:01:05]} 19. Rc1 {[%emt 0:03:48]} c6 {[%emt 0:02:58] [#] Strongly threatening ...Bf3.} 20. b3 {[%emt 0:00:20]} Bf3 {[%emt 0:01:23]} 21. Qg6 {[%emt 0:00:38]} Bh1 {[%emt 0:00:29][%csl Gh1][%cal Rd5g2,Bf3h1,Bh1e4,Be4f5,Bf5c2][%mdl 32]} 22. Rc2 {[%emt 0:00:35] Inhibits Qg2+.} Be4 {[%emt 0:00:29]} 23. Qg4 {[%emt 0:01:48]} Bf5 {[%emt 0:01:10]} 24. Qh5 {[%emt 0:01:41]} Bxc2 {[%emt 0:00:20]} 25. Bxh6 {[%emt 0:01:19]} Qxd4+ {[%emt 0:00:25] Black mates.} 26. Kf1 {[%emt 0:00:43]} fxe5+ {[%emt 0:01:02]} 27. Kg2 {[%emt 0:01:34]} Rf2+ {[%emt 0:00:39]} 28. Kh3 {[%emt 0:01:00]} Bf5+ {[%emt 0:00:08]} 29. Qxf5 {[%emt 0:01:06]} exf5 {[%emt 0:00:09] Weighted Error Value: White=1.51/Black=0.57} 0-1

[Event "44th Chess Olympiad Women 2022"]
[Site "Chennai"]
[Date "2022.07.29"]
[Round "1.40"]
[White "Campos, Maria Jose"]
[Black "Mpinganjira, Ellen"]
[Result "1-0"]
[ECO "A30"]
[WhiteElo "2185"]
[BlackElo "1334"]
[Annotator "TA"]
[PlyCount "73"]
[EventDate "2022.07.29"]
[EventType "team-tourn"]
[EventCountry "IND"]
[SourceTitle "playchess.com"]
[Source "ChessBase"]
[SourceQuality "1"]
[WhiteTeam "Argentina"]
[BlackTeam "MAW"]
[WhiteTeamCountry "ARG"]
[TimeControl "40/5400+30:1800+30"]

{[%evp 9,73,46,47,37,51,43,43,55,68,50,111,68,63,61,62,56,60,70,68,53,66,65,140,121,137,143,144,137,138,138,142,140,143,139,171,108,214,187,197,148,145,152,197,132,132,138,126,118,142,131,139,120,126,106,176,176,176,176,192,163,400,412,963,945,1009,1002]} 1. c4 {[%emt 0:00:21]} c5 {[%emt 0:00:41]} 2. g3 {[%emt 0:00:27]} d6 {[%emt 0:00:55]} 3. Bg2 {[%emt 0:00:07]} Nf6 {[%emt 0:02:05]} 4. Nc3 {[%emt 0:00:24]} e6 {[%emt 0:02:00]} 5. Nf3 {[%emt 0:02:44]} Be7 {[%emt 0:03:20]} 6. O-O {[%emt 0:00:36] A30: Symmetrical English: Double Fianchetto and Hedgehog.} O-O {[%emt 0:01:43]} 7. d4 {[%emt 0:02:33]} cxd4 {[%emt 0:01:18]} 8. Nxd4 {[%emt 0:00:48] White is slightly better.} Nbd7 {[%emt 0:02:42]} 9. Qd2 {[%emt 0:04:35]} Qc7 {[%emt 0:05:05]} (9... Nb6 $14) 10. b3 {[%emt 0:03:33]} a6 {[%emt 0:07:55] Prevents Ndb5.} 11. Rd1 {[%emt 0:06:12] [#]} Rb8 $146 {[%emt 0:04:00]} ({Predecessor:} 11... Rd8 12. Ba3 Ne5 13. Rac1 Bd7 14. e3 Rac8 15. f4 Ng6 16. h3 Qb8 17. Kh2 b5 18. cxb5 axb5 {1-0 (37) Seyhanoglu,D (2086)-Demirag,B (1975) Konya 2018}) 12. Ba3 {[%emt 0:04:11]} Rd8 {[%emt 0:05:49]} 13. Rac1 {[%emt 0:02:52]} Nf8 {[%emt 0:08:48]} 14. Qb2 {[%emt 0:12:49]} Ng6 {[%emt 0:07:08]} 15. Bb4 {[%emt 0:05:47]} e5 {[%emt 0:02:32]} ({Better is} 15... Ne5 $14) 16. Nc2 $16 {[%emt 0:01:58]} b6 {[%emt 0:01:58]} 17. Ne3 {[%emt 0:02:29]} Be6 {[%emt 0:15:41]} 18. Ncd5 {[%emt 0:01:08]} Bxd5 {[%emt 0:04:24]} 19. cxd5 {[%emt 0:00:20]} Qa7 {[%emt 0:00:57]} 20. Rc6 {[%emt 0:03:52]} a5 {[%emt 0:03:33]} 21. Bd2 {[%emt 0:03:41]} Ne8 {[%emt 0:04:16]} 22. Rdc1 {[%emt 0:05:30]} (22. Nc4 $18) 22... h5 {[%emt 0:04:52]} (22... Bg5 $16 {is a better defense.}) 23. Nf5 {[%emt 0:03:56]} Bf6 {[%emt 0:01:42]} 24. Qc2 {[%emt 0:01:41]} (24. e4 $18) 24... Ne7 {[%emt 0:01:35]} 25. Nxe7+ {[%emt 0:00:13]} Bxe7 {[%emt 0:00:11]} 26. Be3 {[%emt 0:00:33]} (26. e4 $18) 26... Nf6 {[%emt 0:03:15]} 27. Rc7 {[%emt 0:05:15]} Rb7 {[%emt 0:01:04]} 28. Qc6 {[%emt 0:01:58]} Rdb8 {[%emt 0:01:43]} 29. Rxb7 Rxb7 30. Qc8+ {[%emt 0:02:29]} Kh7 {[%emt 0:00:16]} 31. Rc6 {[%emt 0:01:13] White is much more active.} Rb8 {[%emt 0:01:24]} (31... g6 $16) 32. Rc7 $36 {[%emt 0:04:47][%mdl 2048] White is in control.} Rxc8 {[%emt 0:00:56]} 33. Rxa7 {[%emt 0:00:06]} Bd8 {[%emt 0:00:25]} 34. Rxf7 {[%emt 0:00:38] Bh3 is the strong threat.} Bc7 $2 {[%emt 0:01:32] [#]} (34... Rc3 35. h3 Kg6) 35. Bh3 {[%emt 0:01:32]} Kg8 {[%emt 0:00:39]} (35... Ng4 $142 36. f3 Kg8) 36. Rxf6 {[%emt 0:00:14]} ({Weaker is} 36. Bxc8 Kxf7 37. Be6+ Ke8 $16) 36... gxf6 {[%emt 0:00:31]} 37. Bxc8 {[%emt 0:00:11] Weighted Error Value: White=0.12 (very precise) /Black=0.24 (precise)} 1-0

[Event "44th Chess Olympiad Women 2022"]
[Site "Chennai"]
[Date "2022.07.29"]
[Round "1.40"]
[White "Sarquis, Maria Belen"]
[Black "Banda Tapiwa"]
[Result "1-0"]
[ECO "C44"]
[WhiteElo "2072"]
[BlackElo "1238"]
[Annotator "TA"]
[PlyCount "59"]
[EventDate "2022.07.29"]
[EventType "team-tourn"]
[EventCountry "IND"]
[SourceTitle "playchess.com"]
[Source "ChessBase"]
[SourceQuality "1"]
[WhiteTeam "Argentina"]
[BlackTeam "MAW"]
[WhiteTeamCountry "ARG"]
[TimeControl "40/5400+30:1800+30"]

{[%evp 9,59,114,132,125,145,136,137,119,409,416,407,418,434,389,435,435,458,387,509,463,460,407,557,401,510,510,560,555,553,555,700,703,646,627,1339,1304,2173,1991,29992,29988,29988,29985,29990,2542,2316,2240,29983,29984,29984,29984,29985,29986]} 1. e4 {[%emt 0:00:04]} e5 {[%emt 0:00:10]} 2. Nf3 {[%emt 0:00:08]} d6 {[%emt 0:00:37]} 3. d4 {[%emt 0:02:35]} f6 {[%emt 0:04:23]} 4. Bc4 {[%emt 0:01:59]} Nc6 {[%emt 0:05:10]} 5. c3 {[%emt 0:06:09]} Na5 {[%emt 0:00:17] [#]} 6. Bd3 $146 {[%emt 0:10:23] White is more active. C44: Ponziani Opening and Scotch Gambit.} ({Predecessor:} 6. Qa4+ c6 7. Be2 b5 8. Qc2 d5 9. exd5 Qxd5 10. O-O Bd6 11. Be3 Bd7 12. b4 {1-0 (23) Fridich,V (984)-Cherry,B (653) LSS email 2014}) 6... a6 {[%emt 0:00:56]} 7. Qa4+ {[%emt 0:08:08]} c6 {[%emt 0:00:05]} 8. b4 {[%emt 0:00:18][%cal Bb2b4,Bb4a5][%mdl 32] White is clearly better.} b5 $2 {[%emt 0:00:16][%mdl 8192] [#]} 9. Qxa5 $18 {[%emt 0:00:17]} Qxa5 {[%emt 0:04:24]} 10. bxa5 {[%emt 0:00:07]} Be7 {[%emt 0:00:32]} 11. Nbd2 {[%emt 0:02:10]} Be6 {[%emt 0:00:17]} 12. O-O {[%emt 0:02:55]} Bd8 {[%emt 0:00:06]} 13. Nb3 {[%emt 0:00:42]} Bc4 {[%emt 0:01:43]} 14. Rd1 {[%emt 0:01:12]} Ne7 {[%emt 0:08:39]} 15. Be3 {[%emt 0:05:12]} Bc7 {[%emt 0:02:42]} 16. Bf1 {[%emt 0:02:29]} d5 {[%emt 0:00:56]} 17. dxe5 {[%emt 0:04:53]} Bxb3 {[%emt 0:04:59]} 18. axb3 {[%emt 0:00:16]} dxe4 {[%emt 0:00:17]} 19. exf6 {[%emt 0:02:34]} exf3 {[%emt 0:00:09]} 20. fxe7 {[%emt 0:00:10]} Kxe7 {[%emt 0:01:23]} 21. Bc5+ {[%emt 0:00:59]} Kf7 {[%emt 0:00:24]} 22. Rd7+ {[%emt 0:00:12]} Ke6 {[%emt 0:10:28]} 23. Rxc7 {[%emt 0:00:20] [#] Re1+ would kill now.} g6 {[%emt 0:00:11]} 24. Rd1 {[%emt 0:01:17]} Rad8 {[%emt 0:02:45]} 25. Rxc6+ {[%emt 0:00:00]} Kf7 {[%emt 0:00:40]} 26. Rxd8 {[%emt 0:00:13]} (26. Rc7+ $142 Kf6 27. Be7+ Kf5 28. Bxd8 Rxd8 29. Rxd8 Ke6 30. gxf3 g5 31. Bh3+ g4 32. Bxg4+ Ke5 33. Rf7 b4 34. f4+ Ke4 35. Rd4#) 26... Rxd8 {[%emt 0:00:04]} 27. Rd6 {[%emt 0:00:42]} Rxd6 {[%emt 0:12:44]} 28. Bxd6 {[%emt 0:00:07] White mates.} Ke6 {[%emt 0:00:16]} 29. Bb4 {[%emt 0:00:15]} Kd5 {[%emt 0:00:42]} 30. c4+ {[%emt 0:00:10] White took control after the opening.  Weighted Error Value: White=0.31/Black=0.97} 1-0